[Event "Klatov Bazar Besiny Cup 2018"]
[Site "Klatovy"]
[Date "2018.07.08"]
[Round "9"]
[White "Pulpan, Jakub"]
[Black "Neuman, Petr"]
[Result "1/2-1/2"]
[ECO "B10"]
[WhiteElo "2386"]
[BlackElo "2432"]
[Annotator "ChessBase"]
[PlyCount "58"]
[EventDate "2018.07.01"]
[EventType "swiss"]
[EventCountry "CZE"]
[SourceTitle "playchess.com"]
[Source "ChessBase"]
[SourceQuality "1"]
[TimeControl "40/7200:0"]

1. e4 {[%emt 0:07:40]} c6 {[%emt 0:00:00]} 2. Nf3 {[%emt 0:01:39]} d5 {[%emt 0:00:00]} 3. Nc3 {[%emt 0:00:00]} dxe4 {[%emt 0:00:00]} 4. Nxe4 {[%emt 0:00:00]} Nf6 {[%emt 0:00:00]} 5. Nxf6+ {[%emt 0:00:00]} exf6 {[%emt 0:00:00]} 6. d4 {[%emt 0:00:00]} Bd6 {[%emt 0:00:00]} 7. Be2 {[%emt 0:04:09]} O-O {[%emt 0:00:00]} 8. O-O {[%emt 0:00:00]} Nd7 {[%emt 0:00:00]} 9. c4 {[%emt 0:01:38]} f5 {[%emt 0:04:49]} 10. b3 {[%emt 0:00:19]} Nf6 {[%emt 0:00:09]} 11. Bb2 {[%emt 0:00:00]} Re8 {[%emt 0:00:00]} 12. a3 {[%emt 0:05:19]} Ne4 {[%emt 0:18:48]} 13. Re1 {[%emt 0:11:54]} a6 {[%emt 0:18:40]} 14. b4 {[%emt 0:02:09]} b5 {[%emt 0:02:37]} 15. d5 {[%emt 0:11:32]} c5 {[%emt 0:01:09]} 16. cxb5 {[%emt 0:01:26]} axb5 {[%emt 0:02:06]} 17. Bxb5 {[%emt 0:06:29]} Bd7 {[%emt 0:00:03]} 18. Bc6 {[%emt 0:25:51]} Rb8 {[%emt 0:18:05]} 19. bxc5 {[%emt 0:04:21]} Bxc5 {[%emt 0:03:13]} 20. Bd4 {[%emt 0:02:13]} Bxc6 {[%emt 0:03:31]} 21. dxc6 {[%emt 0:01:00]} Qd5 {[%emt 0:00:02]} 22. c7 {[%emt 0:04:36]} Rbc8 {[%emt 0:02:17]} 23. Qa4 {[%emt 0:02:27]} Re7 {[%emt 0:02:28]} 24. Rac1 {[%emt 0:09:54]} Rexc7 {[%emt 0:00:18]} 25. Bxc5 {[%emt 0:03:16]} Rxc5 {[%emt 0:00:35]} 26. Rcd1 {[%emt 0:00:48]} Qa8 {[%emt 0:00:36]} 27. Qxa8 {[%emt 0:03:30]} Rxa8 {[%emt 0:04:39]} 28. Rd3 {[%emt 0:00:51]} g6 {[%emt 0:00:08]} 29. g4 {[%emt 0:03:19]} Nf6 {[%emt 0:05:06]} 1/2-1/2

[Event "Klatov Bazar Besiny Cup 2018"]
[Site "Klatovy"]
[Date "2018.07.08"]
[Round "9"]
[White "Simek, Petr"]
[Black "Hollan, Martin"]
[Result "1-0"]
[ECO "E67"]
[WhiteElo "2354"]
[BlackElo "2341"]
[Annotator "NA"]
[PlyCount "101"]
[EventDate "2018.07.01"]
[EventType "swiss"]
[EventCountry "CZE"]
[SourceTitle "playchess.com"]
[Source "ChessBase"]
[SourceQuality "1"]
[TimeControl "40/7200:0"]

1. d4 {[%emt 0:00:00]} Nf6 {[%emt 0:00:00]} 2. c4 {[%emt 0:00:00]} g6 {[%emt 0:00:00]} 3. g3 {[%emt 0:00:00]} Bg7 {[%emt 0:00:00]} 4. Bg2 {[%emt 0:00:00]} d6 {[%emt 0:00:00]} 5. Nc3 {[%emt 0:00:00]} O-O {[%emt 0:00:00]} 6. Nf3 {[%emt 0:00:00]} Nbd7 {[%emt 0:00:00]} 7. O-O {[%emt 0:00:00]} e5 {[%emt 0:00:00]} 8. Qc2 {[%emt 0:00:00]} exd4 {[%emt 0:00:00]} 9. Nxd4 {[%emt 0:00:00]} Nb6 {[%emt 0:00:00]} 10. Rd1 {[%emt 0:02:39]} Nxc4 {[%emt 0:00:00]} 11. Ncb5 {[%emt 0:11:38]} a6 {[%emt 0:00:00]} 12. Qxc4 {[%emt 0:05:21]} axb5 {[%emt 0:00:00]} 13. Nxb5 {[%emt 0:00:00]} Ne8 {[%emt 0:00:00] LiveBook: 18 Games E67: King's Indian: Fianchetto: 6...Nbd7} 14. Qc2 {[%emt 0:22:14]} (14. Qb4 Be6 15. Be3 Qe7 16. Nc3 Nf6 17. Qh4 Ra5 18. Bg5 h6 19. Bxh6 Rh5 20. Bxg7 Rxh4 21. Bxf8 Kxf8 22. gxh4 {0-1 (44) Zhou,W (2606)-Yu,Y (2750) China 2017}) 14... Bf5 {[%emt 0:13:29]} 15. e4 {[%emt 0:00:59]} Bg4 {[%emt 0:07:10]} 16. f3 {[%emt 0:02:54]} Be6 {[%emt 0:07:24]} 17. Nc3 {[%emt 0:03:17]} c6 {[%emt 0:04:25]} 18. Be3 {[%emt 0:03:37]} b5 $146 {[%emt 0:06:16]} ({Predecessor:} 18... Qa5 19. a3 f5 20. Bd4 Bxd4+ 21. Rxd4 f4 22. Ne2 fxg3 23. hxg3 Qb6 24. Rf1 Ra5 25. Rf2 Nf6 26. Qd2 Bc8 27. Nc3 {½-½ (27) Hardicsay,P (2245)-Gorcsi,G (2304) Zalakaros 2016}) 19. a3 {[%emt 0:06:51]} Qb8 {[%emt 0:00:23]} 20. Ne2 {[%emt 0:02:03]} Bc4 {[%emt 0:06:53]} 21. Bd4 {[%emt 0:05:21]} Nf6 {[%emt 0:12:05]} 22. b3 {[%emt 0:02:27]} Bxe2 {[%emt 0:14:03]} 23. Qxe2 {[%emt 0:00:00]} Nd7 {[%emt 0:00:16]} 24. Bxg7 {[%emt 0:08:25]} Kxg7 {[%emt 0:00:00]} 25. f4 {[%emt 0:00:00]} b4 {[%emt 0:05:04]} 26. a4 {[%emt 0:00:12]} Kg8 {[%emt 0:00:00]} 27. Qc4 {[%emt 0:00:55]} Qb6+ {[%emt 0:06:08]} 28. Kh1 {[%emt 0:00:03]} Nf6 {[%emt 0:06:41]} 29. Rxd6 {[%emt 0:06:06]} Ng4 {[%emt 0:00:00]} 30. Qd4 {[%emt 0:00:00]} (30. Qxc6 {gets mated.} Nf2+ 31. Kg1 Nh3+ 32. Kh1 {[#]} Qg1+ $1 {[%mdl 512]} 33. Rxg1 Nf2#) (30. Bf3 $18 Rad8 31. e5 (31. Bxg4 Rxd6 32. e5 Rd2 $17) (31. Rxc6 Qf2 $16) (31. Qxc6 Nf2+ 32. Kg2 Rxd6 $14) 31... Rxd6 32. exd6) 30... Qxd4 {[%emt 0:00:00]} 31. Rxd4 {[%emt 0:00:00]} c5 {[%emt 0:00:32]} 32. Rd2 {[%emt 0:00:59]} Rfc8 {[%emt 0:09:02]} 33. Bf1 {[%emt 0:03:44]} Rc7 {[%emt 0:08:04]} 34. Bb5 {[%emt 0:01:26]} Nf6 {[%emt 0:00:18]} 35. Re1 {[%emt 0:01:14]} Kf8 {[%emt 0:00:00]} 36. Kg2 {[%emt 0:02:06]} Ke7 {[%emt 0:00:00]} 37. e5 {[%emt 0:03:49]} Nd7 {[%emt 0:00:00]} 38. Rd6 {[%emt 0:02:28]} Nf8 {[%emt 0:00:00]} 39. Red1 {[%emt 0:00:12]} Ne6 {[%emt 0:00:00]} 40. Rd7+ {[%emt 0:00:00]} Kf8 {[%emt 0:00:00]} 41. Bc4 {[%emt 2:00:55]} Raa7 {[%emt 1:59:01]} 42. Rxc7 {[%emt 0:00:04]} Rxc7 {[%emt 0:00:00]} 43. Rd6 {[%emt 0:01:03]} Nd4 {[%emt 0:00:00]} 44. Rb6 {[%emt 0:03:06]} Nf5 $18 {[%emt 0:00:33]} (44... Nxb3 {ist eine bessere Verteidigung.} 45. Bxb3 c4) 45. Kf3 {[%emt 0:00:10]} h5 {[%emt 0:01:34]} 46. a5 {[%emt 0:00:33]} Nd4+ {[%emt 0:00:00]} 47. Ke4 {[%emt 0:00:36]} Nc6 {[%emt 0:00:00]} 48. a6 {[%emt 0:02:29]} Na5 {[%emt 0:00:00]} 49. Bd5 {[%emt 0:00:00]} c4 {[%emt 0:00:00]} 50. bxc4 {[%emt 0:00:00]} b3 {[%emt 0:00:00]} 51. Kd4 {[%emt 0:00:07]} 1-0

[Event "Klatov Bazar Besiny Cup 2018"]
[Site "Klatovy"]
[Date "2018.07.08"]
[Round "9"]
[White "Hausner, Ivan"]
[Black "Eret, Matous"]
[Result "1-0"]
[ECO "A40"]
[WhiteElo "2321"]
[BlackElo "2184"]
[Annotator "NA"]
[PlyCount "97"]
[EventDate "2018.07.01"]
[EventType "swiss"]
[EventCountry "CZE"]
[SourceTitle "playchess.com"]
[Source "ChessBase"]
[SourceQuality "1"]
[TimeControl "40/7200:0"]

1. d4 {[%emt 0:00:00]} Nf6 {[%emt 0:00:00]} 2. c4 {[%emt 0:00:00]} e6 {[%emt 0:00:00]} 3. g3 {[%emt 0:00:00]} Bb4+ {[%emt 0:00:00]} 4. Bd2 {[%emt 0:00:00]} Bxd2+ {[%emt 0:00:00]} 5. Qxd2 {[%emt 0:00:00]} O-O {[%emt 0:00:00] E00: Catalan Bogo-Indian (3 g3 Bb4+)} (5... d5 6. Bg2 c6 7. Nf3 Nbd7 8. O-O b6 9. Ne5 Bb7 10. Nc3 O-O 11. Rac1 Qe7 12. Nxd7 Qxd7 13. b3 Ba6 14. cxd5 cxd5 15. Qb2 Qe7 16. Rc2 Rac8 17. Rfc1 h6 18. Nb1 Rfd8 19. Rxc8 Rxc8 20. Rxc8+ Bxc8 {½-½ (44) Bluebaum,M (2631)-Meier,G (2648) Karlsruhe/Baden-Baden 2018}) 6. Bg2 {[%emt 0:00:00]} d5 {[%emt 0:02:42]} 7. Nc3 {[%emt 0:00:00] LiveBook: 3 Games} c6 {[%emt 0:02:55]} 8. Nf3 {[%emt 0:00:00]} Nbd7 {[%emt 0:00:42]} 9. b3 {[%emt 0:00:00]} Qe7 {[%emt 0:02:47]} 10. O-O {[%emt 0:00:00]} b6 {[%emt 0:02:32]} 11. Rfe1 {[%emt 0:00:00]} Ba6 {[%emt 0:04:27]} 12. e4 {[%emt 0:01:47]} dxe4 $146 {[%emt 0:06:51]} ({Predecessor:} 12... dxc4 13. d5 e5 14. dxc6 Nc5 15. Nd5 Qd6 16. Nh4 Nxd5 17. exd5 {½-½ (49) Khamdamov,S (2278)-Vokhidov,S (2336) Tashkent 2015}) 13. Nxe4 {[%emt 0:00:00]} Rac8 {[%emt 0:02:41]} 14. Rad1 {[%emt 0:00:57]} Nxe4 {[%emt 0:03:03]} 15. Rxe4 {[%emt 0:00:00]} Nf6 {[%emt 0:00:00]} 16. Ree1 {[%emt 0:00:00]} Rfd8 {[%emt 0:01:09]} 17. Qc2 {[%emt 0:00:06]} Nd7 {[%emt 0:09:20]} 18. Qb2 {[%emt 0:00:26]} Qf8 {[%emt 0:00:56]} 19. Rd2 {[%emt 0:01:53]} Bb7 {[%emt 0:05:36]} 20. Qc2 {[%emt 0:01:09]} h6 {[%emt 0:06:03]} 21. Red1 {[%emt 0:03:04]} Qe7 {[%emt 0:13:25]} 22. Qe4 {[%emt 0:01:22]} Nf6 {[%emt 0:04:21]} 23. Qe2 {[%emt 0:00:00]} Qc7 {[%emt 0:05:52]} 24. Ne5 {[%emt 0:00:20]} Rd6 {[%emt 0:03:03]} 25. c5 {[%emt 0:05:22]} Rdd8 {[%emt 0:00:04]} 26. Qc4 {[%emt 0:08:58]} Nd5 {[%emt 0:01:17]} 27. Qc1 {[%emt 0:00:31]} b5 {[%emt 0:02:22]} 28. Be4 {[%emt 0:01:58]} Qe7 {[%emt 0:01:41]} 29. Re1 {[%emt 0:01:48]} Nf6 {[%emt 0:01:51]} 30. Bg2 {[%emt 0:02:30]} Nd7 {[%emt 0:01:58]} 31. Red1 {[%emt 0:02:18]} Nf6 {[%emt 0:01:51]} 32. b4 {[%emt 0:00:23]} Nd5 {[%emt 0:01:02]} 33. Rb2 {[%emt 0:00:00]} Qc7 {[%emt 0:01:05]} 34. a3 {[%emt 0:00:14]} Re8 {[%emt 0:01:17]} 35. Be4 {[%emt 0:01:15]} Nf6 {[%emt 0:00:00]} 36. Bb1 {[%emt 0:00:00]} Nd7 {[%emt 0:02:14]} 37. Qc3 {[%emt 0:00:52]} Rcd8 {[%emt 0:01:05]} 38. Rbd2 {[%emt 0:00:39]} Nf8 {[%emt 0:00:38]} 39. h4 {[%emt 0:02:08]} Qe7 {[%emt 0:01:50]} 40. Be4 {[%emt 0:01:14]} Rc8 {[%emt 0:02:13]} 41. Qf3 {[%emt 1:59:51]} Qc7 {[%emt 1:59:54]} 42. g4 {[%emt 0:00:00]} g6 {[%emt 0:01:45]} 43. h5 {[%emt 0:02:30]} Kg7 {[%emt 0:01:10]} 44. hxg6 {[%emt 0:00:00]} Nxg6 {[%emt 0:00:00]} 45. Qg3 {[%emt 0:00:00]} Rh8 {[%emt 0:02:49]} 46. f4 {[%emt 0:00:15]} Qe7 {[%emt 0:02:16]} 47. f5 {[%emt 0:02:28]} Nf8 {[%emt 0:00:50] [#]} 48. f6+ $1 {[%emt 0:00:41]} Qxf6 {[%emt 0:00:00]} 49. Rf2 {[%emt 0:00:00]} 1-0

[Event "Klatov Bazar Besiny Cup 2018"]
[Site "Klatovy"]
[Date "2018.07.08"]
[Round "9"]
[White "Vyprachticky, David"]
[Black "Slovak, Kilian"]
[Result "1-0"]
[ECO "E92"]
[WhiteElo "2301"]
[BlackElo "2285"]
[Annotator "NA"]
[PlyCount "87"]
[EventDate "2018.07.01"]
[EventType "swiss"]
[EventCountry "CZE"]
[SourceTitle "playchess.com"]
[Source "ChessBase"]
[SourceQuality "1"]
[TimeControl "40/7200:0"]

1. d4 {[%emt 0:01:30]} Nf6 {[%emt 0:00:00]} 2. c4 {[%emt 0:00:00]} g6 {[%emt 0:00:00]} 3. Nc3 {[%emt 0:00:00]} Bg7 {[%emt 0:00:00]} 4. e4 {[%emt 0:00:00]} d6 {[%emt 0:00:00]} 5. Nf3 {[%emt 0:00:00]} O-O {[%emt 0:00:00]} 6. Be2 {[%emt 0:00:00]} e5 {[%emt 0:00:00]} 7. d5 {[%emt 0:00:00]} a5 {[%emt 0:00:00]} 8. Bg5 {[%emt 0:00:00]} Na6 {[%emt 0:00:00]} 9. Nd2 {[%emt 0:00:00]} Qe8 {[%emt 0:00:00]} 10. O-O {[%emt 0:05:54]} h6 {[%emt 0:00:00]} 11. Be3 {[%emt 0:00:03] E92: King's Indian: Classical: 6 Be2 e5: 7 dxe5, 7 Be3 and Petrosian System without 7...Nbd7} Nh7 {[%emt 0:03:59] LiveBook: 3 Games} 12. a3 {[%emt 0:01:22]} Bd7 {[%emt 0:01:40]} 13. b4 {[%emt 0:03:28]} f5 {[%emt 0:15:02]} 14. f3 {[%emt 0:05:10]} b6 $146 {[%emt 0:12:44]} ({Predecessor:} 14... f4 15. Bf2 g5 16. c5 Qg6 17. c6 bxc6 18. dxc6 {1-0 (37) Freitag,M (2388)-Semenova,I (2215) Graz 2015}) 15. Qb3 {[%emt 0:07:11]} f4 {[%emt 0:02:55]} 16. Bf2 {[%emt 0:00:41]} a4 {[%emt 0:01:20]} 17. Qc2 {[%emt 0:03:15]} g5 {[%emt 0:01:55]} 18. Rab1 {[%emt 0:03:46]} Kh8 {[%emt 0:08:27]} (18... Qg6 $16 19. c5 (19. Nxa4 g4 $16) 19... dxc5) 19. c5 {[%emt 0:03:14]} bxc5 {[%emt 0:01:00]} 20. bxc5 {[%emt 0:01:16]} Nxc5 {[%emt 0:01:11]} 21. Bxc5 {[%emt 0:00:00]} dxc5 {[%emt 0:00:00]} 22. Bb5 {[%emt 0:02:59]} Rg8 {[%emt 0:04:31]} 23. Nc4 {[%emt 0:01:40]} Bf6 {[%emt 0:05:35]} 24. Bxd7 {[%emt 0:03:20]} Qxd7 {[%emt 0:00:20]} 25. Rb7 {[%emt 0:00:15]} Qc8 {[%emt 0:04:10]} 26. Rfb1 {[%emt 0:00:49]} g4 {[%emt 0:00:44]} 27. Qe2 {[%emt 0:10:22]} h5 {[%emt 0:16:06]} 28. d6 {[%emt 0:01:24]} ({White has to play} 28. fxg4 $16 hxg4 29. d6) 28... Ng5 $1 {[%emt 0:02:15]} 29. fxg4 {[%emt 0:09:04]} hxg4 $2 {[%emt 0:01:28]} (29... f3 $1 $11 30. gxf3 hxg4 31. fxg4 (31. Rxc7 $2 gxf3 32. Rxc8 Nh3+ 33. Kf1 fxe2+ 34. Kxe2 Raxc8 $19) 31... Nh3+ 32. Kh1 Qxg4 33. Qxg4 Rxg4) 30. Rxc7 {[%emt 0:01:55]} Qe6 {[%emt 0:00:12]} 31. Nd5 {[%emt 0:02:08]} Bd8 {[%emt 0:04:53]} 32. Rcb7 {[%emt 0:03:25]} Nf3+ {[%emt 0:13:44]} 33. Kh1 {[%emt 0:02:05]} Nd4 {[%emt 0:00:46]} 34. Qe1 {[%emt 0:01:30]} g3 {[%emt 0:01:26]} 35. Qf1 {[%emt 0:11:30]} f3 {[%emt 0:09:09]} 36. h3 {[%emt 0:00:36]} Rg6 {[%emt 0:00:00]} 37. Rb8 {[%emt 0:03:16]} Rxb8 {[%emt 0:03:48]} 38. Rxb8 {[%emt 0:00:00]} Rh6 {[%emt 0:00:07]} 39. Rxd8+ {[%emt 0:00:00]} Kg7 {[%emt 0:00:00]} 40. gxf3 {[%emt 0:20:37]} Rxh3+ {[%emt 0:00:00]} 41. Kg2 {[%emt 1:59:40]} Ne2 {[%emt 1:59:56]} 42. f4 {[%emt 0:01:59]} Qg4 {[%emt 0:00:00]} 43. Rg8+ {[%emt 0:00:00]} Kxg8 {[%emt 0:00:00]} 44. Nf6+ {[%emt 0:00:00]} 1-0

[Event "Klatov Bazar Besiny Cup 2018"]
[Site "Klatovy"]
[Date "2018.07.08"]
[Round "9"]
[White "Mejzlik, Ondrej"]
[Black "Simet, Martin"]
[Result "1/2-1/2"]
[ECO "A22"]
[WhiteElo "2287"]
[BlackElo "2182"]
[Annotator "NA"]
[PlyCount "57"]
[EventDate "2018.07.01"]
[EventType "swiss"]
[EventCountry "CZE"]
[SourceTitle "playchess.com"]
[Source "ChessBase"]
[SourceQuality "1"]
[TimeControl "40/7200:0"]

{[%evp 13,50,0,0,0,0,0,18,10,17,26,21,8,19,9,8,18,32767,25,32767,72,71,32767,32767,17,32767,32767,27,32767,32767,32767,32767,32767,32767,32767,32767,32767,-16,32767,-37]} 1. c4 {[%emt 0:00:00]} e5 {[%emt 0:00:00]} 2. Nc3 {[%emt 0:00:00]} Nf6 {[%emt 0:00:00]} 3. g3 {[%emt 0:00:00]} d5 {[%emt 0:00:00]} 4. cxd5 {[%emt 0:00:00]} Nxd5 {[%emt 0:00:00]} 5. Bg2 {[%emt 0:00:00]} Nb6 {[%emt 0:00:00]} 6. Nf3 {[%emt 0:00:00]} Nc6 {[%emt 0:00:00]} 7. O-O {[%emt 0:00:00]} Be7 {[%emt 0:00:00]} 8. d3 {[%emt 0:00:00]} O-O {[%emt 0:00:00]} 9. a3 {[%emt 0:00:00]} Re8 {[%emt 0:00:00]} 10. b4 {[%emt 0:00:54]} Bf8 {[%emt 0:00:00]} 11. Ne4 {[%emt 0:03:41] A29: Englische Eröffnung (Vierspringer-Variante)} (11. Bb2 a5 12. b5 Nd4 13. Nd2 c6 14. bxc6 Nxc6 15. Na4 Nxa4 16. Qxa4 Bd7 17. Rfc1 Rb8 18. Qb3 Be6 19. Qb5 Bd7 20. Qb3 Be6 21. Qb5 Bd7 22. Qb3 {½-½ (22) Vitiugov,N (2722)-Svidler,P (2765) St Petersburg 2017}) 11... a5 {[%emt 0:00:00]} 12. b5 {[%emt 0:02:11] LiveBook: 3 Games} Nd4 {[%emt 0:03:45]} 13. Nxd4 {[%emt 0:01:13]} exd4 {[%emt 0:00:00]} 14. Qc2 {[%emt 0:02:27]} a4 {[%emt 0:05:24]} 15. Bg5 $146 {[%emt 0:16:15]} ({Vorgänger:} 15. Bf4 Nd5 16. Bd2 h6 17. Rfc1 b6 18. Qc4 Bb7 19. Qxd4 f5 {½-½ (19) Sivic,K (2410)-Vinchev,S (2502) ICCF email 2016}) 15... f6 {[%emt 0:14:34]} 16. Bf4 {[%emt 0:02:05]} Nd5 {[%emt 0:01:10]} 17. Rfc1 {[%emt 0:11:18]} Nxf4 {[%emt 0:05:25]} 18. gxf4 {[%emt 0:00:40]} Ra5 {[%emt 0:00:02]} 19. Qxc7 {[%emt 0:03:09]} Qxc7 {[%emt 0:05:53]} 20. Rxc7 {[%emt 0:00:00]} Rxb5 {[%emt 0:00:00]} 21. Rc4 {[%emt 0:00:23]} Rb2 {[%emt 0:05:11]} 22. Rxa4 {[%emt 0:09:33]} Rxe2 {[%emt 0:01:08]} 23. Rxd4 {[%emt 0:00:42]} Bxa3 {[%emt 0:23:33]} 24. Bf3 {[%emt 0:06:15]} Bb2 $1 {[%emt 0:00:57]} 25. Bxe2 {[%emt 0:00:00]} Bxd4 $15 {[%emt 0:00:09]} 26. Ra4 {[%emt 0:01:19]} Bb6 {[%emt 0:04:57]} 27. Kg2 {[%emt 0:13:57]} Bc7 {[%emt 0:02:45]} 28. Bf3 {[%emt 0:00:10]} Rd8 {[%emt 0:24:25]} 29. Rc4 {[%emt 0:07:48]} 1/2-1/2

[Event "Klatov Bazar Besiny Cup 2018"]
[Site "Klatovy"]
[Date "2018.07.08"]
[Round "9"]
[White "Jurek, Josef"]
[Black "Soural, Jan"]
[Result "0-1"]
[ECO "A05"]
[WhiteElo "2277"]
[BlackElo "2192"]
[Annotator "NA"]
[PlyCount "56"]
[EventDate "2018.07.01"]
[EventType "swiss"]
[EventCountry "CZE"]
[SourceTitle "playchess.com"]
[Source "ChessBase"]
[SourceQuality "1"]
[TimeControl "40/7200:0"]

1. Nf3 {[%emt 0:00:00]} Nf6 {[%emt 0:00:00]} 2. c4 {[%emt 0:00:00]} g6 {[%emt 0:00:00]} 3. g3 {[%emt 0:00:00]} Bg7 {[%emt 0:00:00]} 4. Bg2 {[%emt 0:00:00]} d5 {[%emt 0:05:12]} 5. cxd5 {[%emt 0:00:00]} Nxd5 {[%emt 0:00:00]} 6. O-O {[%emt 0:02:04]} c5 {[%emt 0:04:21]} 7. Nc3 {[%emt 0:00:34]} Nc6 {[%emt 0:04:20]} 8. Qb3 {[%emt 0:03:05] LiveBook: 8 Games} Nxc3 {[%emt 0:03:34] A34: Symmetrical English: 2 Nc3, lines with ...d5} (8... Nb6 9. d3 O-O 10. Ng5 Nd4 11. Qd1 h6 12. Nge4 c4 13. dxc4 Nxc4 14. b3 Nd6 15. Nxd6 Qxd6 16. Bb2 Bg4 17. f3 Be6 {½-½ (48) Lei,T (2528)-Lagno,K (2547) Riadh 2017}) 9. bxc3 {[%emt 0:04:42]} O-O {[%emt 0:00:15]} 10. Qb5 {[%emt 0:05:30]} Qa5 {[%emt 0:16:29]} 11. a4 {[%emt 0:07:08]} a6 {[%emt 0:05:01]} 12. Qxa5 {[%emt 0:04:11]} Nxa5 {[%emt 0:00:00]} 13. Ba3 {[%emt 0:01:57]} Bg4 $146 {[%emt 0:27:24]} ({Predecessor:} 13... b6 14. Rfb1 Nc4 15. Bc1 Rb8 {½-½ (65) Van der Werf,M (2441)-Jens,J (2382) Netherlands 2012}) 14. h3 {[%emt 0:04:33]} Bxf3 {[%emt 0:11:45]} 15. Bxf3 {[%emt 0:02:59]} Nb3 {[%emt 0:01:19]} 16. Ra2 {[%emt 0:04:58]} Rfd8 {[%emt 0:01:00]} 17. d4 {[%emt 0:15:28]} cxd4 {[%emt 0:14:16]} 18. Rb1 {[%emt 0:00:00]} ({Worse is} 18. Bxb7 Ra7 $17) 18... Na5 {[%emt 0:01:09]} 19. Bxe7 {[%emt 0:02:43]} Rd7 {[%emt 0:01:23]} 20. Bb4 {[%emt 0:01:08]} Nc6 {[%emt 0:03:52]} 21. Bxc6 {[%emt 0:00:14]} bxc6 {[%emt 0:00:00]} 22. Rd1 {[%emt 0:00:45]} Rb7 {[%emt 0:02:14]} 23. Rad2 {[%emt 0:05:45]} f5 {[%emt 0:03:08]} 24. Ba5 $1 {[%emt 0:00:46]} dxc3 {[%emt 0:02:51]} 25. Rc2 $1 {[%emt 0:00:00]} Rb2 $11 {[%emt 0:04:24]} 26. Rdc1 {[%emt 0:00:00]} Re8 {[%emt 0:00:00]} 27. e3 {[%emt 0:04:33]} Re4 {[%emt 0:01:55]} 28. Bxc3 {[%emt 0:00:00]} Rxc2 {[%emt 0:00:00]} 0-1

[Event "Klatov Bazar Besiny Cup 2018"]
[Site "Klatovy"]
[Date "2018.07.08"]
[Round "9"]
[White "Tscharotschkin, Michael"]
[Black "Toman, Ondrej"]
[Result "1/2-1/2"]
[ECO "C10"]
[WhiteElo "2124"]
[BlackElo "2197"]
[Annotator "NA"]
[PlyCount "117"]
[EventDate "2018.07.01"]
[EventType "swiss"]
[EventCountry "CZE"]
[SourceTitle "playchess.com"]
[Source "ChessBase"]
[SourceQuality "1"]
[TimeControl "40/7200:0"]

1. e4 {[%emt 0:00:00]} e6 {[%emt 0:00:00]} 2. d4 {[%emt 0:00:00]} d5 {[%emt 0:00:00]} 3. Nc3 {[%emt 0:00:00]} h6 {[%emt 0:00:00]} 4. Bd3 {[%emt 0:01:54]} Nc6 {[%emt 0:00:00]} 5. Nge2 {[%emt 0:01:36]} Nb4 {[%emt 0:00:00]} 6. O-O {[%emt 0:01:28]} Nxd3 {[%emt 0:04:18]} 7. Qxd3 {[%emt 0:00:00]} dxe4 {[%emt 0:01:37]} 8. Nxe4 {[%emt 0:00:00]} Nf6 {[%emt 0:02:18]} 9. Nxf6+ {[%emt 0:01:51]} Qxf6 {[%emt 0:00:06]} 10. Bf4 {[%emt 0:00:17]} Bd6 {[%emt 0:07:24]} 11. Bxd6 {[%emt 0:10:55]} cxd6 {[%emt 0:00:00]} 12. Qb5+ {[%emt 0:07:49]} Ke7 {[%emt 0:12:13]} 13. d5 {[%emt 0:07:01]} Bd7 {[%emt 0:05:37]} 14. Qb3 {[%emt 0:01:00]} b6 {[%emt 0:02:49]} 15. Nc3 {[%emt 0:01:43]} Rhd8 {[%emt 0:08:01]} 16. Rfe1 {[%emt 0:08:38]} e5 {[%emt 0:07:58]} 17. Ne4 {[%emt 0:05:25]} Qg6 {[%emt 0:03:01]} 18. Qa3 {[%emt 0:01:08]} Bf5 {[%emt 0:04:34]} 19. Ng3 {[%emt 0:01:48]} f6 {[%emt 0:00:19]} 20. f4 {[%emt 0:00:30]} Kf7 {[%emt 0:00:00]} 21. fxe5 {[%emt 0:00:52]} dxe5 {[%emt 0:00:00]} 22. Nxf5 {[%emt 0:04:55]} Qxf5 {[%emt 0:00:19]} 23. c4 {[%emt 0:00:00]} Kg8 {[%emt 0:05:18]} 24. Rad1 {[%emt 0:02:05]} Rd7 {[%emt 0:06:16]} 25. b4 {[%emt 0:01:03]} Rad8 {[%emt 0:02:11]} 26. Qb3 {[%emt 0:00:06]} Kh7 {[%emt 0:04:28]} 27. Rf1 {[%emt 0:08:02]} Qe4 $11 {[%emt 0:01:04]} 28. Rfe1 {[%emt 0:00:11]} Qf5 {[%emt 0:00:00]} 29. a4 {[%emt 0:01:36]} a6 {[%emt 0:02:02]} 30. Rd2 {[%emt 0:02:25]} e4 {[%emt 0:03:18]} 31. Qc2 {[%emt 0:10:10]} b5 {[%emt 0:01:31]} 32. axb5 {[%emt 0:11:25]} axb5 {[%emt 0:00:00]} 33. Rxe4 {[%emt 0:00:55]} bxc4 {[%emt 0:11:28]} 34. Rxc4 {[%emt 0:00:00]} Qxc2 {[%emt 0:00:00]} 35. Rcxc2 {[%emt 0:00:05]} Rxd5 {[%emt 0:00:00]} 36. Rxd5 {[%emt 0:00:00]} Rxd5 {[%emt 0:00:00]} 37. Rb2 {[%emt 0:00:00]} Rb5 {[%emt 0:00:57]} 38. Kf2 {[%emt 0:00:00]} g5 {[%emt 0:02:24]} 39. Ke3 {[%emt 0:00:00]} Kg6 {[%emt 0:00:16]} 40. Kd4 {[%emt 0:00:00]} f5 {[%emt 0:00:43]} 41. Kc4 {[%emt 1:59:23]} Rb8 {[%emt 1:59:31]} 42. b5 {[%emt 0:00:00]} f4 {[%emt 0:00:43]} 43. b6 {[%emt 0:00:38]} Kf5 {[%emt 0:01:49]} 44. Kc5 {[%emt 0:03:54]} g4 {[%emt 0:02:55]} 45. Kc6 {[%emt 0:03:11]} f3 {[%emt 0:03:24]} 46. b7 {[%emt 0:04:13]} fxg2 {[%emt 0:04:56]} 47. Rxg2 {[%emt 0:00:00]} h5 {[%emt 0:00:00]} 48. Kc7 {[%emt 0:02:07]} Rxb7+ {[%emt 0:00:00]} 49. Kxb7 {[%emt 0:00:00]} h4 {[%emt 0:00:00]} 50. Kc6 {[%emt 0:00:00]} Kf4 {[%emt 0:00:00]} 51. Kd5 {[%emt 0:04:21]} g3 {[%emt 0:00:00]} 52. h3 {[%emt 0:02:43]} Kf3 {[%emt 0:00:00]} 53. Rg1 {[%emt 0:00:00]} Kf2 {[%emt 0:00:00]} 54. Ra1 {[%emt 0:00:00]} g2 {[%emt 0:00:00]} 55. Ke4 {[%emt 0:00:00]} Kg3 {[%emt 0:00:00]} 56. Ke3 {[%emt 0:00:46]} Kxh3 {[%emt 0:00:00]} 57. Kf2 {[%emt 0:00:00]} Kh2 {[%emt 0:00:00]} 58. Rc1 {[%emt 0:00:26]} h3 {[%emt 0:00:00]} 59. Rg1 {[%emt 0:00:15]} 1/2-1/2